bitfinex/quotes_ETHUSD_20251009
["timestamp","ask_amount","ask_price","bid_price","bid_amount"]
[1759998439392,1.68949123,4363.4,4361.4,2.29281746]
[1759998439393,2.29210598,4362.8,4361.4,2.29281746]
[1759998439620,0.47981812,4362.7,4361.2,2.29292861]
[1759998439911,2.385,4362.6,4361.3,2.29287118]
[1759998440113,0.6,4362.4,4361.3,2.29286218]
[1759998440297,0.6,4362.4,4360.7,3.89316403]
[1759998440298,0.48020988,4362.3,4360.7,3.89316403]
[1759998440604,0.48020988,4362.3,4360.7,0.3894164]
[1759998440605,2.29278878,4361.6,4360.7,0.3894164]
[1759998440814,3.862,4361.5,4360.5,2.29430626]
[1759998441107,3.862,4361.5,4360.5,0.001]
[1759998441308,3.862,4361.5,4360.5,2.29429666]
[1759998441612,3.862,4361.5,4360.5,2.2942738]
[1759998441760,3.862,4361.5,4360.7,2.29320826]
[1759998441969,3.313,4361.5,4360.8,2.52257516]
[1759998442299,3.313,4361.5,4360.5,2.29431456]
[1759998442300,3.313,4361.5,4360.5,0.001]
[1759998442622,0.34652099,4362.3,4360.5,2.2942945]
[1759998442782,2.385,4362.1,4361.0,2.29301383]
[1759998442965,2.385,4362.1,4360.5,0.001]
[1759998443199,2.2926872,4361.7,4360.6,2.2932398]
[1759998443387,2.385,4362.1,4360.5,0.001]
[1759998443589,0.454,4361.6,4360.5,0.001]
[1759998443775,2.29309678,4361.0,4360.5,0.001]
[1759998444097,0.48060837,4361.4,4360.5,0.001]
[1759998444298,8.83684393,4361.4,4360.5,0.001]
[1759998444513,6.544,4361.4,4360.5,0.001]
[1759998445108,8.929,4361.3,4360.5,0.001]
[1759998445303,4.67794689,4361.2,4360.5,0.001]
[1759998445619,2.385,4361.2,4360.5,0.001]
[1759998445904,2.29326239,4360.6,4360.5,0.001]
[1759998446211,8.83626239,4360.6,4360.5,0.001]
[1759998446702,9.29026239,4360.6,4360.5,0.001]
[1759998446889,9.29026239,4360.6,4359.9,0.02]
[1759998446890,2.29357798,4360.0,4359.9,0.02]
[1759998447091,11.45093578,4360.0,4359.9,0.02]
[1759998447310,2.415,4358.9,4356.1,5.16356749]
[1759998447470,1.92,4359.9,4356.1,15.24746679]
[1759998447471,2.29451836,4358.3,4356.1,15.24746679]
[1759998447665,8.01,4358.2,4356.8,2.2952159]
[1759998447897,2.2943728,4358.5,4357.2,2.29503235]
[1759998448111,8.928,4358.4,4356.8,0.02295262]
[1759998448273,2.2945734,4358.2,4356.1,5.16356749]
[1759998448614,9.542,4358.6,4356.1,5.16356749]
[1759998448615,0.59925643,4359.4,4357.0,2.29514679]
[1759998448898,9.382,4358.9,4357.1,2.29505764]
[1759998449075,9.542,4359.3,4356.6,10.0838993]
[1759998449279,2.29526257,4356.8,4356.1,5.16356749]
[1759998449504,2.29526257,4356.8,4350.3,5.29442149]
[1759998449505,0.6336,4355.8,4353.3,1.1424489]
[1759998449670,2.415,4355.9,4353.6,2.29699324]
[1759998449671,2.29635373,4354.8,4353.6,2.29699324]
[1759998449876,2.29689689,4353.7,4353.6,2.29699324]
[1759998450070,2.29710794,4353.3,4351.6,0.11970874]
[1759998450367,2.29710794,4353.3,4350.8,0.1381]
[1759998450368,17.0808993,4353.3,4351.1,8.5]
[1759998450591,6.998,4353.3,4351.6,2.29800059]
[1759998450793,6.544,4353.3,4353.2,5.70189394]
[1759998450971,6.544,4353.3,4353.2,5.17899449]
[1759998451167,0.1197,4353.6,4353.2,5.17899449]
[1759998451619,0.1197,4353.6,4353.4,2.29701523]
[1759998451922,0.1197,4353.6,4353.2,5.17899449]
[1759998452832,0.03870658,4353.6,4353.4,2.29704563]
[1759998452982,0.03870658,4353.6,4353.5,1.99951456]
[1759998453183,0.03870658,4353.6,4353.4,2.29704563]
[1759998453184,0.03870658,4353.6,4353.2,4.48990169]
[1759998453514,0.03870658,4353.6,4353.2,3.93990169]
[1759998453715,0.03870658,4353.6,4353.4,2.29702982]
[1759998454014,0.03870658,4353.6,4353.2,3.93990169]
[1759998454227,0.03870658,4353.6,4353.4,0.1381]
[1759998454510,0.03870658,4353.6,4353.2,3.93990169]
[1759998454714,0.03870658,4353.6,4353.3,0.45363307]
[1759998454890,0.03870658,4353.6,4353.4,2.29703596]
[1759998455094,0.03870658,4353.6,4353.4,2.43513596]
[1759998455294,1e-08,4353.6,4353.5,0.1381]
[1759998455613,1e-08,4353.6,4353.5,11.36810241]
[1759998455796,1e-08,4353.6,4353.5,21.71919689]
[1759998455998,1e-08,4353.6,4353.5,23.63919689]
[1759998456216,2.387,4355.9,4353.6,1.92]
[1759998456420,0.454,4357.1,4355.6,2.29586763]
[1759998456585,17.006,4357.0,4355.4,2.29599333]
[1759998456927,8.932,4356.9,4355.5,10.79590668]
[1759998457233,8.932,4356.9,4355.5,8.5]
[1759998457234,1.83621006,4356.8,4355.5,8.5]
[1759998457386,9.386,4356.9,4355.5,8.5]
[1759998457587,1.83621006,4356.8,4355.5,8.5]
[1759998457815,1.83637944,4356.4,4355.5,8.5]
[1759998458018,9.386,4356.9,4354.6,0.1144]
[1759998458019,1.92,4356.8,4354.6,0.1144]
[1759998458327,1.92,4356.8,4353.3,0.45363307]
[1759998458328,0.6336,4356.2,4353.6,2.29692743]
[1759998458626,0.6336,4356.2,4353.7,0.22969274]
[1759998458627,2.62,4356.0,4353.7,0.22969274]
[1759998458825,2.62,4356.0,4353.3,0.45363307]
[1759998458826,0.689,4355.9,4353.3,0.45363307]
[1759998459170,0.689,4355.9,4353.4,0.1381]
[1759998459434,3.75663161,4355.8,4352.3,9.12351706]
[1759998459586,0.6336,4355.6,4352.0,2.388]
[1759998459786,0.6336,4355.6,4351.3,9.12351706]
[1759998459787,1.92,4355.4,4352.1,0.2388]
[1759998460010,2.5536,4355.2,4352.2,2.29768852]
[1759998460236,0.6336,4355.0,4352.1,0.2388]
[1759998460450,0.454,4354.9,4352.1,0.2388]
[1759998460641,0.454,4354.9,4353.3,2.29710506]
[1759998460802,9.945,4354.8,4353.3,2.29706197]
[1759998461129,0.454,4354.9,4352.7,2.29741611]
[1759998461337,0.454,4354.9,4352.2,2.29768852]
[1759998461338,8.94,4354.8,4353.5,2.29695174]
[1759998461634,6.552,4354.7,4353.5,2.29695174]
[1759998461801,2.06683165,4354.5,4352.1,0.2388]
[1759998462004,2.06710748,4354.0,4352.1,0.2388]
[1759998462217,8.939,4353.9,4352.5,2.29748651]
[1759998462391,0.663,4353.8,4352.6,2.29747354]
[1759998462592,0.663,4353.8,4352.7,2.29741562]
[1759998463012,0.663,4353.8,4351.0,1.92]
[1759998463339,0.0792,4353.6,4352.6,2.29746397]
[1759998463630,0.0792,4353.6,4351.3,0.6336]
[1759998463631,0.0792,4353.6,4353.5,2.29700241]
[1759998464822,0.0792,4353.6,4353.5,2.30553426]
[1759998465122,0.0792,4353.6,4353.5,2.29700241]
[1759998465325,0.0792,4353.6,4352.7,0.2297464]
[1759998465501,0.0792,4353.6,4352.8,6.396]
[1759998465707,0.0792,4353.6,4353.5,2.29700241]
[1759998466729,0.0792,4353.6,4353.5,2.31997243]
[1759998466931,0.0792,4353.6,4353.2,2.29713236]
[1759998467131,0.0792,4353.6,4351.4,0.6336]
[1759998467132,0.0792,4353.6,4351.4,2.9316672]
[1759998467440,0.0792,4353.6,4351.5,4.197661]
[1759998467616,0.0792,4353.6,4351.5,4.18616672]
[1759998467824,0.0792,4353.6,4352.4,2.29757494]
[1759998468055,0.0792,4353.6,4351.5,0.29316672]
[1759998468257,0.0792,4353.6,4350.8,0.60307552]
[1759998468258,0.0792,4353.6,4350.9,2.65635926]
[1759998468551,4.155,4353.5,4351.0,1.92]
[1759998468730,0.0792,4353.6,4350.9,2.278]
[1759998468930,1.8812,4353.6,4352.8,2.29737067]
[1759998469129,0.0792,4353.6,4350.8,2.90146446]
[1759998469330,0.0792,4353.6,4351.5,2.29804312]
[1759998469536,0.0792,4353.6,4353.4,2.297038]
[1759998469735,0.0792,4353.6,4353.5,2.29700241]
[1759998470326,0.0792,4353.6,4353.5,1.94700241]
[1759998471050,0.0792,4353.6,4353.5,1.94800241]
[1759998471250,0.0792,4353.6,4353.5,2.37251227]
[1759998471459,0.0792,4353.6,4353.5,0.42550986]
[1759998471625,0.0792,4353.6,4353.5,2.29800241]
[1759998472928,1e-08,4353.6,4353.5,2.29800241]
[1759998473256,9.556,4358.1,4353.5,2.29800241]
[1759998473257,0.4484,4357.6,4355.7,2.2957983]
[1759998473431,2.06559729,4357.1,4355.1,6.552]
[1759998473647,2.545,4357.4,4355.2,1.12372377]
[1759998473858,2.545,4357.4,4355.9,2.29568596]
[1759998474161,6.698,4357.3,4355.2,1.12372377]
[1759998474370,2.30017174,4358.0,4353.7,2.29685921]
[1759998474371,0.4484,4357.2,4355.1,2.29615804]
[1759998474670,0.4484,4357.2,4353.1,1.92]
[1759998474671,1.92,4357.0,4353.0,0.45344439]
[1759998474870,0.6336,4356.9,4353.9,0.976]
[1759998475168,0.4484,4356.8,4354.5,2.29643007]
[1759998475346,0.4484,4356.8,4353.9,0.976]
[1759998475549,0.4484,4356.7,4354.5,2.29647483]
[1759998475739,0.4484,4356.7,4353.9,0.976]
[1759998475939,2.389,4356.6,4355.1,2.29611546]
[1759998476271,2.616,4356.5,4355.2,2.29610148]
[1759998476475,0.5864427,4357.9,4355.2,2.29610148]
[1759998476476,2.389,4357.6,4355.3,1.898]
[1759998476635,2.389,4357.6,4355.5,9.54420859]
[1759998476837,4.776,4358.2,4355.7,2.29584222]
[1759998477070,4.776,4358.2,4355.8,1.18400508]
[1759998477444,0.4484,4358.1,4355.4,6.551]
[1759998477639,3.237,4358.0,4356.9,2.29519992]
[1759998477844,2.0647411,4358.9,4356.5,2.29542063]
[1759998478046,0.2157,4359.0,4356.4,3.796]
[1759998478259,0.1144,4357.8,4357.6,2.29484042]
[1759998478658,0.1144,4357.8,4357.5,2.29488855]
[1759998478864,0.1144,4357.8,4357.1,0.1144]
[1759998479040,0.1144,4357.8,4357.1,2.40949606]
[1759998479255,0.1144,4357.8,4357.1,0.1144]
[1759998480882,2.06529936,4357.8,4356.5,2.29537187]
[1759998481177,0.1144,4357.0,4356.2,0.1144]
[1759998481349,2.06578183,4356.8,4354.8,0.4594975]
[1759998481544,0.1144,4356.4,4355.7,0.1144]
[1759998481796,3.826,4356.7,4354.4,0.094]
[1759998482005,3.826,4356.7,4355.2,2.41045444]
[1759998482006,0.1144,4355.9,4355.2,2.41045444]
[1759998482171,0.1136,4355.9,4355.2,0.1144]
[1759998482572,2.578,4355.9,4353.0,2.29721924]
[1759998482806,0.1144,4355.3,4354.6,2.4108015]
[1759998483021,0.1144,4355.3,4354.6,0.1144]
[1759998483201,0.104,4356.1,4355.1,2.296125]
[1759998483503,0.1144,4356.0,4355.4,2.29595952]
[1759998483874,0.1144,4356.0,4355.3,2.41044493]
[1759998484073,0.1144,4356.0,4355.4,2.29599713]
[1759998484270,0.1144,4356.0,4355.3,0.1144]
[1759998484504,2.388,4357.0,4354.4,4.337]
[1759998484818,0.1144,4356.7,4356.1,2.29562098]
[1759998485104,2.06572938,4356.9,4354.5,0.4337]
[1759998485272,2.06572938,4356.9,4353.5,2.29795364]
[1759998485273,2.06569943,4356.9,4354.6,6.378]
[1759998485604,2.388,4357.0,4353.6,9.554]
[1759998485805,2.06582186,4356.7,4355.6,2.2958869]
[1759998486016,2.51385852,4357.4,4354.2,1.92]
[1759998486017,2.06549927,4357.3,4355.8,2.29575969]
[1759998486172,2.06549927,4357.3,4354.7,2.29636943]
[1759998486173,0.4484,4357.4,4354.7,2.29636943]
[1759998486373,0.6,4356.6,4354.8,0.87353694]
[1759998486619,0.6,4356.6,4355.9,2.29568778]
[1759998486829,0.6,4356.6,4354.8,0.87353694]
[1759998486976,0.6,4356.6,4355.7,2.29579596]
[1759998487170,0.6,4356.6,4354.9,2.29626397]
[1759998487171,0.6,4356.6,4355.8,2.29577415]
[1759998487491,0.6,4356.6,4354.4,2.388]
[1759998487693,2.0660318,4356.2,4354.3,2.29658039]
[1759998488006,2.0663002,4355.7,4354.6,2.29641331]
[1759998488208,2.777,4356.1,4353.7,2.29689689]
[1759998488209,2.388,4355.6,4353.7,2.29689689]
[1759998488412,2.388,4355.6,4354.8,2.29627202]
[1759998488590,3.683,4355.6,4354.6,2.29641755]
[1759998488787,6.071,4355.6,4354.0,2.29669449]
[1759998489026,6.071,4355.6,4353.5,0.001]
[1759998489308,0.4484,4355.5,4353.5,0.001]
[1759998489625,0.6336,4355.4,4353.5,0.001]
[1759998489774,2.06668443,4354.9,4353.5,0.001]
[1759998489973,2.782,4354.8,4353.5,0.001]
[1759998490379,3.2304,4354.8,4353.5,0.001]
[1759998490787,4.619,4354.7,4353.5,0.001]
[1759998490989,7.007,4354.7,4353.5,0.001]
[1759998491418,1.6076053,4354.4,4353.5,0.001]
[1759998491631,10.53861298,4354.3,4353.5,0.001]
[1759998492125,8.931,4354.3,4352.4,0.02297582]
[1759998492300,8.931,4354.3,4353.1,2.29720363]
[1759998492624,2.388,4354.8,4353.2,0.25269196]
[1759998492915,2.388,4354.8,4352.3,2.29761327]
[1759998492916,2.388,4354.8,4353.1,2.29721348]
[1759998493137,2.388,4355.5,4353.1,2.29721348]
[1759998493442,4.647,4355.5,4354.3,2.29657864]
[1759998493739,5.413,4355.4,4353.2,2.2971607]
[1759998493948,0.002,4357.0,4353.0,2.388]
[1759998493949,2.292,4355.5,4353.1,1.92]
[1759998494233,0.4472,4356.3,4353.2,2.9368199]
[1759998494439,3.358,4356.2,4354.5,2.29647408]
[1759998494642,1.60734699,4355.1,4353.6,2.29689918]
[1759998494812,1.60734699,4355.1,4351.4,0.4627516]
[1759998494813,4.693,4355.0,4353.8,2.29681015]
[1759998495013,0.1144,4354.6,4353.8,0.1144]
[1759998495212,4.693,4355.0,4352.2,2.482]
[1759998495213,0.17218571,4354.5,4352.2,2.482]
[1759998495413,8.932,4354.4,4353.5,2.29697835]
[1759998495654,0.2359,4355.4,4352.3,2.41097635]
[1759998495655,0.6831,4355.7,4352.3,2.388]
[1759998495831,1.60749901,4354.6,4353.1,2.29721348]
[1759998496034,1.60756159,4354.5,4353.3,2.29706222]
[1759998496211,1.60767959,4354.2,4352.7,2.29741898]
[1759998496406,3.842,4354.2,4352.8,0.25271561]
[1759998496727,3.842,4354.2,4352.8,0.2297419]
[1759998496906,3.842,4354.2,4352.9,2.29731902]
[1759998497107,3.842,4354.2,4353.2,2.29715498]
[1759998497308,4.2892,4354.2,4352.4,2.29756706]
[1759998497508,1.60783047,4353.7,4352.5,2.29753015]
[1759998497731,1.60786689,4353.6,4352.5,2.29748442]
[1759998497947,1.60786689,4353.6,4352.5,2.52723286]
[1759998498107,4.2892,4354.2,4352.5,0.22974844]
[1759998498308,4.2892,4354.2,4352.5,2.29751401]
[1759998498549,4.2892,4354.2,4352.4,2.29756935]
[1759998498719,4.2892,4354.2,4352.5,2.29752936]
[1759998499123,4.2892,4354.2,4352.6,2.29746241]
[1759998499349,4.2892,4354.2,4352.9,2.29727894]
[1759998499517,6.241,4354.1,4352.9,2.29728482]
[1759998499846,9.556,4354.4,4351.7,2.701]
[1759998499847,6.241,4354.0,4351.7,2.701]
[1759998500350,0.7,4353.8,4352.6,2.29747106]
[1759998500545,2.3077949,4353.8,4352.6,2.29742771]
[1759998500760,2.99686664,4353.8,4352.7,2.29741431]
[1759998501054,2.99686664,4353.8,4352.8,2.2973611]
[1759998501353,0.7,4353.8,4351.4,10.0184486]
[1759998501574,0.4472,4353.7,4351.5,1.00184486]
[1759998501727,0.7,4353.8,4351.7,2.29794867]
[1759998501924,0.4472,4353.7,4350.8,0.1381]
[1759998502124,18.491,4353.6,4350.9,9.555697]
[1759998502362,8.934,4353.5,4352.0,2.29778982]
[1759998502561,2.389,4353.4,4351.0,2.29832222]
[1759998502732,2.29705742,4353.4,4352.3,2.2976257]
[1759998503071,6.173,4353.3,4351.5,2.29805814]
[1759998503271,8.58017155,4353.2,4351.3,1.731]
[1759998503571,2.29730524,4353.0,4351.3,2.998]
[1759998503768,2.04,4352.9,4351.4,2.29811095]
[1759998504070,0.4472,4354.0,4351.5,0.5296111]
[1759998504276,4.073,4353.9,4351.6,2.29800533]
[1759998504426,0.4472,4354.4,4352.6,2.29743801]
[1759998504622,2.29689269,4353.8,4352.7,2.29741086]
[1759998504853,1.92,4354.2,4352.7,2.29741086]
[1759998504854,2.29692234,4353.7,4352.7,2.29741086]
[1759998505259,0.1144,4353.0,4352.3,0.1144]
[1759998505425,0.6992,4353.4,4352.8,2.29736477]
[1759998505642,0.6992,4353.4,4351.7,2.29795252]
[1759998505848,0.6992,4353.4,4351.8,1.23832606]
[1759998506065,0.6992,4353.4,4353.0,2.29726607]
[1759998506269,0.2157,4357.9,4352.2,2.29767121]
[1759998506270,0.4472,4354.9,4352.2,2.29768852]
[1759998506474,1.92,4354.7,4352.1,4.625]
[1759998506658,1.92,4354.7,4351.8,1.23832606]
[1759998506847,1.92,4354.7,4353.0,2.29726625]
[1759998507042,0.4472,4354.9,4352.4,2.29754607]
[1759998507258,2.29636943,4354.7,4353.3,2.29710427]
[1759998507454,4.498,4354.8,4352.9,2.2972754]
[1759998507662,2.29672921,4354.1,4352.4,2.29758294]
[1759998507894,2.29672921,4354.1,4353.1,2.29721161]
[1759998508192,0.4472,4354.9,4352.5,0.79885829]
[1759998508361,2.389,4354.5,4352.7,2.29742458]
[1759998508683,2.389,4354.5,4353.6,2.29694829]
[1759998508844,0.4472,4355.0,4353.6,2.29691732]
[1759998509176,2.29626397,4354.9,4353.6,2.29691732]
[1759998509380,4.6853167,4354.8,4353.5,2.29699285]
[1759998509678,9.558,4355.3,4353.8,2.29684413]
[1759998509679,0.002,4353.9,4353.8,2.29684413]
[1759998510477,0.002,4353.9,4352.9,2.29731902]
[1759998510655,0.002,4353.9,4353.0,1.1853016]
[1759998510861,0.002,4353.9,4352.5,3.09637972]
[1759998511181,0.002,4353.9,4352.7,2.29737198]
[1759998511387,0.002,4353.9,4352.3,0.001]
[1759998511570,2.29699749,4353.6,4352.6,2.29745515]
[1759998511752,0.002,4353.9,4352.3,0.001]
[1759998511949,4.79485103,4353.8,4352.8,2.29734008]
[1759998512150,2.29690472,4353.7,4352.9,0.22973401]
[1759998512351,0.002,4353.9,4352.9,0.22973401]
[1759998512681,0.002,4353.9,4352.8,2.827]
[1759998512985,0.002,4353.9,4352.3,0.001]
[1759998513185,0.002,4353.9,4353.0,2.29726484]
[1759998513760,0.002,4353.9,4352.3,0.001]
[1759998514084,0.002,4353.9,4352.5,2.29753015]
[1759998514380,0.002,4353.9,4352.7,2.29742458]
[1759998514581,0.002,4353.9,4353.8,2.29684413]
[1759998515485,0.002,4353.9,4353.8,2.41124413]
[1759998517170,0.002,4353.9,4353.8,4.35421257]
[1759998517364,0.002,4353.9,4353.8,11.53281257]
[1759998517568,0.002,4353.9,4353.8,13.76161458]
[1759998517764,2.389,4356.7,4353.9,2.5536]
[1759998518070,2.5034,4356.7,4356.4,2.29543747]
[1759998518368,0.1144,4356.7,4356.0,0.1144]
[1759998518969,0.002,4357.0,4355.3,8.84101659]
[1759998519170,0.002,4357.0,4356.7,2.29531125]
[1759998519466,0.002,4357.0,4356.7,2.29529262]
[1759998519973,0.002,4357.0,4356.4,0.1144]
[1759998520179,0.002,4357.0,4356.1,0.02295631]
[1759998520380,2.443,4356.9,4354.7,2.29636943]
[1759998520699,2.443,4356.9,4355.0,2.29621125]
[1759998520866,2.443,4356.9,4354.9,0.295]
[1759998520867,3.424,4356.9,4354.9,0.295]
[1759998521062,3.424,4356.9,4355.5,2.2959229]
[1759998521265,3.424,4356.9,4354.9,0.295]
[1759998521266,5.71921581,4356.9,4354.9,0.295]
[1759998521487,0.002,4357.0,4355.0,2.29621125]
[1759998521703,4.97421629,4356.9,4355.8,2.29575434]
[1759998521901,6.269,4356.8,4356.0,2.29566006]
[1759998522197,0.002,4357.0,4355.1,10.43530175]
[1759998522405,8.933,4356.9,4355.1,0.30597482]
[1759998522567,8.933,4356.9,4354.9,0.295]
[1759998522769,8.933,4356.9,4354.8,0.46853694]
[1759998522994,0.002,4357.0,4354.8,0.46853694]
[1759998523209,9.3854,4356.9,4353.7,10.59578397]
[1759998523391,0.4544,4356.8,4354.2,2.29663313]
[1759998523684,2.74966257,4356.8,4355.0,2.29619785]
[1759998523885,2.74966257,4356.8,4354.7,2.29632489]
[1759998523886,2.29531526,4356.7,4353.7,0.46645704]
[1759998524077,2.29604078,4355.4,4354.5,2.2964728]
[1759998524273,2.29604078,4355.4,4353.5,2.29700227]
[1759998524479,8.931,4355.5,4354.0,2.29672791]
[1759998524690,8.931,4355.5,4354.3,2.29654109]
[1759998524899,8.931,4355.5,4354.4,2.29651491]
[1759998525099,8.931,4355.5,4354.5,2.29646958]
[1759998525301,0.2265,4355.9,4354.5,2.29646958]
[1759998525609,8.83902183,4355.4,4353.7,2.29689689]
[1759998525796,6.543,4355.4,4353.8,0.42375298]
[1759998526001,8.931,4355.3,4354.5,2.29642613]
[1759998526380,8.931,4355.3,4353.8,0.42375298]
[1759998526609,2.2959089,4355.6,4353.8,0.42375298]
[1759998526814,0.99999999,4359.8,4354.7,2.29632879]
[1759998526815,0.4581,4356.5,4354.7,2.29632879]
[1759998527018,0.9991,4356.4,4354.3,2.29657356]
[1759998527313,0.6336,4357.1,4354.0,2.29669715]
[1759998527314,25.91442693,4356.3,4354.0,2.29669715]
[1759998527612,3.0117,4356.2,4352.9,1.678]
[1759998527814,2.29625434,4355.0,4353.9,2.29676665]
[1759998528019,8.931,4354.9,4353.8,0.001]
[1759998528235,4.7232,4354.8,4353.8,0.001]
[1759998528395,2.5225497,4355.4,4353.8,0.001]
[1759998528597,0.2265,4355.4,4353.8,0.001]
[1759998528924,3.212,4355.3,4353.8,0.001]
[1759998529125,0.2265,4355.8,4353.8,0.001]
[1759998529328,7.179,4355.7,4354.5,2.29644744]
[1759998529524,7.179,4355.7,4354.6,2.2964189]
[1759998529695,0.4581,4356.2,4354.3,2.29656586]
[1759998530025,0.4581,4356.2,4354.4,0.22965659]
[1759998530207,0.4581,4356.2,4355.0,2.29621081]
[1759998530208,2.29573372,4356.0,4355.0,2.29621081]
[1759998530407,0.1144,4355.7,4354.9,2.41065435]
[1759998530581,2.29591157,4355.6,4354.9,0.1144]
[1759998530813,2.29595266,4355.5,4354.5,2.29643523]
[1759998531058,0.1144,4355.2,4354.5,0.1144]
[1759998531352,0.1144,4355.8,4355.1,2.41053282]
[1759998531562,0.1144,4355.8,4355.1,0.1144]
[1759998531762,0.1144,4355.8,4355.3,2.29600562]
[1759998531763,2.6064,4355.8,4355.3,2.29600562]
[1759998532062,0.1144,4355.8,4355.3,2.29600562]
[1759998532217,0.1144,4355.8,4355.1,0.1144]
[1759998532412,0.1144,4355.8,4355.2,0.24105679]
[1759998532630,0.1144,4355.8,4355.4,2.29598351]
[1759998532951,0.1144,4355.8,4355.3,2.29601336]
[1759998533242,0.4581,4356.8,4355.2,0.24105679]
[1759998533464,0.1144,4356.1,4355.4,0.1144]
[1759998533658,0.1144,4356.1,4355.5,2.29594765]
[1759998533821,0.1144,4356.1,4355.4,0.1144]
[1759998534124,0.1144,4356.1,4354.3,2.56254039]
[1759998534125,2.39,4356.9,4356.4,2.29543774]
[1759998534332,2.781,4356.9,4356.4,2.29543098]
[1759998534565,2.781,4356.9,4355.6,2.29584928]
[1759998534566,4.899,4356.9,4356.5,2.29541219]
[1759998534866,0.002,4356.9,4355.0,2.388]
[1759998535068,0.002,4356.9,4355.1,1.01947674]
[1759998535392,0.002,4356.9,4356.3,2.29549073]
[1759998535593,0.002,4356.9,4355.2,8.5]
[1759998535798,0.002,4356.9,4356.2,2.29557422]
[1759998536297,0.002,4356.9,4355.2,8.5]
[1759998536298,6.378,4356.8,4355.2,8.5]
[1759998536585,6.378,4356.8,4355.9,2.29573234]
[1759998536586,7.867,4356.8,4355.9,2.29573234]
[1759998536793,7.867,4356.8,4356.1,2.29562756]
[1759998537008,6.542,4356.7,4355.7,2.29580313]
[1759998537174,8.93,4356.7,4356.0,2.29566405]
[1759998537374,8.93,4356.7,4355.3,1.19074767]
[1759998537693,8.93,4356.7,4355.8,2.29574339]
[1759998537867,8.93,4356.7,4355.2,8.5]
[1759998538063,8.93,4356.7,4355.2,10.79605346]
[1759998538269,8.93,4356.7,4355.5,2.29590633]
[1759998538465,8.93,4356.7,4355.3,2.29601427]
[1759998538664,8.93,4356.7,4355.2,10.79610113]
[1759998539004,8.93,4356.7,4355.5,2.29593375]
[1759998539295,0.002,4356.9,4355.2,8.5]
[1759998539480,0.002,4356.9,4356.3,2.29549844]
[1759998539680,0.002,4356.9,4355.3,1.92]
[1759998539994,0.002,4356.9,4356.2,10.12932693]
[1759998540196,0.002,4356.9,4356.3,8.5]
[1759998540795,0.002,4356.9,4356.3,10.79552458]
[1759998541096,0.002,4356.9,4355.4,2.25177045]
[1759998541257,0.002,4356.9,4355.1,0.28447674]
[1759998541463,0.002,4356.9,4355.6,2.29589493]
[1759998541664,0.002,4356.9,4356.3,2.29551959]
[1759998541860,0.002,4356.9,4355.5,8.5]
[1759998542076,0.002,4356.9,4355.6,2.29589493]
[1759998542371,0.002,4356.9,4356.8,2.29526257]
[1759998542599,0.002,4356.9,4355.7,1.07958949]
[1759998542769,0.002,4356.9,4356.3,2.29552343]
[1759998542970,0.002,4356.9,4355.7,1.07958949]
[1759998543395,0.002,4356.9,4356.6,2.29536247]
[1759998543600,0.002,4356.9,4356.7,2.29531236]
[1759998544203,0.002,4356.9,4356.6,2.29536794]
[1759998544502,0.002,4356.9,4356.7,2.29527626]
[1759998544703,0.002,4356.9,4355.5,8.5]
[1759998544903,0.002,4356.9,4356.1,2.29559304]
[1759998545112,0.002,4356.9,4356.1,2.29562776]
[1759998545274,0.002,4356.9,4355.5,8.5]
[1759998545607,0.002,4356.9,4356.1,2.29561569]
[1759998545803,0.002,4356.9,4356.0,2.29566943]
[1759998546102,0.002,4356.9,4356.1,2.29562911]
[1759998546291,0.002,4356.9,4356.0,2.29564378]
[1759998546495,0.002,4356.9,4355.8,0.95309002]
[1759998546693,0.002,4356.9,4355.1,0.28447674]
[1759998546694,2.388,4356.8,4355.1,0.28447674]
[1759998546897,2.8461,4356.8,4354.5,0.346]
[1759998547210,4.463,4356.7,4355.5,2.29591096]
[1759998547408,4.463,4356.7,4354.7,2.29636943]
[1759998547409,4.463,4356.7,4355.6,2.2958627]
[1759998547581,8.94,4356.6,4355.3,2.29605119]
[1759998547777,0.002,4356.9,4355.1,8.5]
[1759998547989,2.417,4356.8,4355.2,1.0796263]
[1759998548308,2.417,4356.8,4355.7,2.29583873]
[1759998548608,2.417,4356.8,4355.4,2.29598895]
[1759998548911,2.417,4356.8,4354.8,0.001]
[1759998549109,1.0917,4356.7,4354.8,0.001]
[1759998549280,1.0917,4356.7,4354.9,2.29626397]
[1759998549492,1.0917,4356.7,4354.8,0.001]
[1759998549493,13.2001,4356.6,4354.8,0.001]
[1759998549692,0.4581,4356.6,4354.8,0.001]
[1759998549916,0.5,4356.2,4354.8,0.001]
[1759998550500,0.741,4356.1,4354.8,2.2973097]
[1759998550721,0.5,4356.2,4354.9,2.29626397]
[1759998550918,6.552,4356.0,4354.8,0.001]
[1759998551222,8.9392,4355.9,4354.8,0.001]
[1759998551423,0.4581,4356.3,4354.8,2.29731293]
[1759998551628,6.551,4355.8,4354.8,0.001]
[1759998551795,0.4581,4356.3,4354.8,2.29730698]
[1759998552142,6.551,4355.7,4354.8,0.001]
[1759998552696,6.551,4355.6,4354.8,0.001]
[1759998552996,0.4581,4356.2,4354.8,0.001]
[1759998553195,3.247,4356.1,4354.9,2.29625862]
[1759998553426,6.551,4356.0,4354.9,2.29625862]
[1759998553598,8.939,4356.0,4354.8,2.29730229]
[1759998553799,0.4581,4356.2,4354.9,2.2962171]
[1759998554129,8.939,4356.1,4354.9,2.29624959]
[1759998554330,20.0,4355.0,4354.9,2.29624959]
[1759998554525,20.0,4355.0,4354.8,2.29731572]